bitfinex/quotes_ETHUSD_20240922
["timestamp","ask_amount","ask_price","bid_price","bid_amount"]
[1726967841109,0.44903735,2613.4,2612.9,1.91353]
[1726967841417,0.09567896,2613.3,2612.9,1.91353]
[1726967842569,0.09567896,2613.3,2612.7,1.91372]
[1726967842726,2.4816,2613.2,2612.7,1.91372]
[1726967842937,2.57728485,2613.2,2612.7,1.91368]
[1726967843661,2.57728485,2613.2,2612.8,1.91364]
[1726967843946,2.4816,2613.2,2612.8,1.91364]
[1726967844149,2.57728366,2613.2,2612.8,1.91364]
[1726967844640,2.57728366,2613.2,2612.7,1.91368]
[1726967844843,2.57728543,2613.2,2612.8,1.91359]
[1726967845358,2.57728543,2613.2,2612.7,1.91367]
[1726967845543,3.02633597,2613.2,2612.7,1.91367]
[1726967846755,2.4816,2613.2,2612.8,1.91365]
[1726967846961,2.5772847,2613.2,2612.8,1.91365]
[1726967847172,2.5772847,2613.2,2612.7,1.91367]
[1726967847362,2.5772847,2613.2,2612.7,3.82734]
[1726967847522,2.5772847,2613.2,2612.7,1.91367]
[1726967848322,3.21766517,2613.2,2612.7,1.91367]
[1726967850874,2.4816,2613.2,2612.7,1.91367]
[1726967851758,2.4816,2613.2,2612.9,1.91357]
[1726967852337,2.57727969,2613.2,2612.7,1.91366]
[1726967853881,4.49063969,2613.2,2612.7,1.91366]
[1726967855389,5.13102566,2613.2,2612.7,1.91366]
[1726967858098,5.13102566,2613.2,2612.4,0.0382256]
[1726967858099,2.4816,2613.2,2612.4,0.0382256]
[1726967858310,2.4816,2613.2,2612.9,3.82705]
[1726967858678,2.4816,2613.2,2612.9,1.91352]
[1726967860009,2.57728001,2613.2,2612.9,1.91352]
[1726967860213,2.4816,2613.2,2612.9,1.91352]
[1726967860707,2.4816,2613.2,2612.7,1.91368]
[1726967860940,2.4816,2613.2,2612.8,1.91364]
[1726967861076,0.09568046,2613.1,2612.5,1.91381]
[1726967862868,0.09568046,2613.1,2612.7,1.91372]
[1726967863699,2.4172,2613.0,2612.5,1.91381]
[1726967863901,4.33075,2613.0,2612.4,4.9521456]
[1726967864106,2.85984305,2612.9,2612.5,1.91387]
[1726967864307,2.95553545,2612.9,2612.5,1.91387]
[1726967865781,2.85984305,2612.9,2612.5,1.91387]
[1726967867706,2.85984305,2612.9,2612.4,0.0382256]
[1726967868003,2.85984305,2612.9,2612.4,1.9521256]
[1726967868409,0.48690454,2612.8,2612.4,1.9521556]
[1726967868763,2.4172,2612.9,2612.4,1.9521556]
[1726967868963,2.4172,2612.9,2612.5,1.91387]
[1726967870001,2.4172,2612.9,2612.5,1.91229489]
[1726967872310,2.4172,2612.9,2612.4,0.0382256]
[1726967874007,4.33078,2612.9,2612.4,0.0382256]
[1726967874213,0.72969046,2612.8,2612.4,0.0382256]
[1726967874442,0.72969046,2612.8,2612.4,1.9521556]
[1726967877826,0.63399823,2612.8,2612.4,1.9521556]
[1726967880533,0.63399823,2612.8,2612.5,1.91386]
[1726967880833,2.5128943,2612.9,2612.5,1.91386]
[1726967886206,2.4172,2612.9,2612.5,1.91386]
[1726967886406,2.4172,2612.9,2612.5,1.91382]
[1726967887456,2.4172,2612.9,2612.5,3.82765]
[1726967887665,2.4172,2612.9,2612.5,1.91382]
[1726967887959,2.85983238,2612.9,2612.5,1.91382]
[1726967891152,2.85983238,2612.9,2612.5,3.82765]
[1726967891563,2.85983238,2612.9,2612.6,1.9138]
[1726967893162,2.85983238,2612.9,2612.5,1.91382]
[1726967893337,2.85983238,2612.9,2612.7,1.91372]
[1726967893556,2.85983238,2612.9,2612.5,1.91382]
[1726967893755,2.85983238,2612.9,2612.6,1.91375]
[1726967898363,0.39124368,2612.8,2612.5,1.9138]
[1726967898613,0.29555262,2612.8,2612.5,3.82763]
[1726967898719,0.29555262,2612.8,2612.6,1.9138]
[1726967907669,2.2894,2612.7,2612.5,1.9138]
[1726967908755,2.2894,2612.7,2612.6,1.91379]
[1726967909768,9.43865736,2613.4,2613.2,1.91335]
[1726967909977,2.3901,2613.4,2613.2,1.91334]
[1726967910146,2.3901,2613.4,2613.0,1.91348]
[1726967910345,2.3901,2613.2,2612.9,1.91358]
[1726967912592,0.09568118,2613.1,2612.8,1.91365]
[1726967913120,2.3901,2613.0,2612.8,1.91365]
[1726967914197,2.3901,2613.0,2612.8,1.9136]
[1726967915464,2.3901,2613.3,2612.9,1.91357]
[1726967915666,2.72970265,2613.3,2612.9,1.91357]
[1726967917198,2.72970265,2613.3,2612.9,1.912421]
[1726967917606,2.72970265,2613.3,2612.8,1.9136]
[1726967918675,2.72970265,2613.3,2612.6,1.91377]
[1726967918676,2.3901,2613.1,2612.6,1.91377]
[1726967918884,2.77980091,2613.0,2612.6,1.91377]
[1726967919071,2.48579091,2613.0,2612.6,1.91377]
[1726967920211,2.48579091,2613.0,2612.6,1.91379]
[1726967921536,2.48579091,2613.0,2612.4,1.9521256]
[1726967921537,0.55,2612.9,2612.5,1.91381]
[1726967921695,3.03579716,2612.9,2612.5,1.91381]
[1726967921894,0.30357972,2612.8,2612.5,1.91381]
[1726967922714,0.30357972,2612.8,2612.4,1.9521256]
[1726967922715,2.3901,2612.7,2612.4,1.9521256]
[1726967923972,2.3901,2612.7,2612.4,3.8660256]
[1726967924209,2.3901,2612.7,2612.4,0.0382256]
[1726967924418,2.48579878,2612.7,2612.4,0.0382256]
[1726967924717,2.9401,2612.5,2612.4,0.0382256]
[1726967924943,3.0358164,2612.5,2612.4,0.0382256]
[1726967925147,2.3901,2612.5,2612.4,0.0382256]
[1726967927609,0.47030485,2612.6,2612.4,0.0382256]
[1726967927805,2.48580499,2612.7,2612.4,0.0382256]
[1726967928813,2.3901,2612.7,2612.4,0.0382256]
[1726967929231,2.3901,2612.7,2612.4,1.9521056]
[1726967931150,2.3901,2612.7,2612.5,1.91384]
[1726967931317,2.3901,2612.7,2612.4,1.9521356]
[1726967931648,0.23901,2612.6,2612.4,1.9521356]
[1726967938074,2.3901,2612.7,2612.5,1.91387]
[1726967939046,0.55,2612.9,2612.5,1.91387]
[1726967940740,2.3677,2613.0,2612.5,1.91383]
[1726967941043,2.46339382,2613.0,2612.5,1.91383]
[1726967942282,2.46339382,2613.0,2612.5,3.82765]
[1726967942455,0.43768238,2612.9,2612.5,3.82765]
[1726967942776,3.01339374,2612.8,2612.4,1.9521556]
[1726967943144,3.01339374,2612.8,2612.5,1.91382]
[1726967943377,2.9177,2612.8,2612.5,1.91382]
[1726967943976,2.3677,2613.1,2612.7,1.91372]
[1726967944158,2.3677,2613.1,2612.9,3.82706]
[1726967944359,2.3677,2613.1,2612.9,1.91353]
[1726967944595,2.63843027,2613.1,2612.8,1.91363]
[1726967944803,0.09568351,2613.0,2612.9,1.91356]
[1726967944964,2.63843027,2613.1,2612.9,1.91356]
[1726967954225,2.63843027,2613.1,2612.9,1.91353]
[1726967954399,2.4129812,2613.5,2613.1,1.91339]
[1726967955939,2.4129812,2613.5,2613.1,1.91338]
[1726967957063,1.61228449,2613.4,2613.0,1.9135]
[1726967957247,2.3173,2613.2,2612.9,1.91355]
[1726967957612,2.3173,2613.2,2612.9,3.82708]
[1726967958267,2.3173,2613.2,2613.0,1.91349]
[1726967958859,2.58272761,2613.2,2613.0,1.91349]
[1726967959947,2.3173,2613.2,2613.0,1.91349]
[1726967960145,3.0,2613.9,2612.4,3.56444009]
[1726967960146,2.2704,2613.5,2613.4,1.91321]
[1726967960350,2.2704,2613.9,2613.4,1.91321]
[1726967960661,1.0657029,2613.8,2613.4,1.91321]
[1726967960834,2.2704,2613.7,2613.4,1.91321]
[1726967961521,2.2704,2613.7,2613.2,1.91333]
[1726967961724,2.2704,2613.7,2612.6,3.39962887]
[1726967961725,2.2704,2613.5,2613.1,1.91343]
[1726967961925,0.29160651,2613.4,2613.1,1.91343]
[1726967963072,0.29160651,2613.4,2613.1,3.82681]
[1726967963244,0.29160651,2613.4,2613.1,1.91338]
[1726967964593,0.0956725,2613.9,2613.4,1.91321]
[1726967964798,0.09565909,2613.9,2613.4,1.91315]
[1726967964936,2.2704,2613.8,2613.4,1.91315]
[1726967965869,2.2704,2613.8,2613.6,3.82603]
[1726967966046,9.7004,2614.0,2613.6,1.91301]
[1726967966282,0.97004,2613.9,2613.6,1.91301]
[1726967966689,0.97004,2613.9,2613.8,1.91292]
[1726967966972,0.97004,2613.9,2613.6,1.91301]
[1726967970875,2.36605164,2614.0,2613.6,1.91301]
[1726967972946,2.2704,2614.0,2613.6,1.91301]
[1726967974162,2.2704,2614.0,2613.6,3.82603]
[1726967974549,2.2704,2614.0,2613.6,1.91301]
[1726967974962,2.2704,2614.0,2613.6,3.82603]
[1726967975273,0.55,2614.1,2613.9,1.91284]
[1726967975447,0.84485,2614.1,2613.9,1.91284]
[1726967975648,0.84485,2614.1,2613.8,1.9129]
[1726967976277,0.55,2614.1,2614.0,1.91277]
[1726967976474,2.49414895,2614.5,2614.0,1.91277]
[1726967977177,2.49414895,2614.5,2614.0,3.82549]
[1726967977336,2.49414895,2614.5,2614.0,1.91272]
[1726967977549,2.49414895,2614.5,2614.1,1.91269]
[1726967977747,0.7994149,2614.4,2614.1,1.91269]
[1726967978477,0.55,2614.4,2614.2,1.91263]
[1726967978677,2.3985,2614.8,2614.2,1.91263]
[1726967978971,2.9485,2614.8,2614.4,3.82491]
[1726967979172,2.9485,2614.8,2614.4,1.91243]
[1726967979847,4.2731786,2614.8,2614.4,1.91243]
[1726967980197,3.627555,2614.8,2614.4,1.91243]
[1726967980486,7.43,2615.0,2614.1,1.61228449]
[1726967980791,2.3985,2615.1,2614.5,1.61228449]
[1726967980990,7.43,2615.2,2614.5,1.61228449]
[1726967981200,2.3985,2615.3,2614.5,2.19057095]
[1726967981377,2.3985,2615.3,2614.7,1.61228449]
[1726967981753,7.4682256,2615.5,2614.7,1.61228449]
[1726967981953,0.0382256,2615.5,2614.7,1.61228449]
[1726967982368,0.1338272,2615.5,2614.6,0.57828646]
[1726967982567,2.3985,2615.4,2614.0,3.0]
[1726967982789,2.3985,2615.2,2614.1,1.40629736]
[1726967982990,2.3985,2615.2,2614.2,4.61228449]
[1726967983199,2.3985,2615.2,2614.4,1.61228449]
[1726967983367,2.3985,2615.2,2614.5,0.57828646]
[1726967983985,0.96446117,2615.3,2614.5,0.57828646]
[1726967984293,0.96446117,2615.3,2614.5,0.79734355]
[1726967984601,7.43,2615.4,2614.8,1.61228449]
[1726967984796,0.0382256,2615.5,2614.8,1.61228449]
[1726967985181,0.0382256,2615.5,2615.0,1.61228449]
[1726967987198,0.0382256,2615.5,2615.0,2.19057095]
[1726967987402,0.0382256,2615.5,2615.1,0.2190571]
[1726967987572,0.0382256,2615.5,2615.2,1.61228449]
[1726967988217,0.0382256,2615.5,2615.4,1.61228449]
[1726967988560,0.0382256,2615.5,2615.4,2.19057095]
[1726967991111,0.0382256,2615.5,2615.4,5.19057095]
[1726967991330,0.0382256,2615.5,2615.4,7.29406552]
[1726967991598,0.0382256,2615.5,2615.4,44.54883352]
[1726967992005,0.0382256,2615.5,2615.4,42.93654903]
[1726967992294,0.0382256,2615.5,2615.4,25.66455203]
[1726967992457,0.0382256,2615.5,2615.4,26.21455203]
[1726967993089,0.0382256,2615.5,2615.4,15.82964203]
[1726967995391,0.0382256,2615.5,2615.4,12.11860703]
[1726967995603,0.0382256,2615.5,2615.4,13.97918744]
[1726968001213,0.0382256,2615.5,2615.4,4.06090795]
[1726968002299,0.0382256,2615.5,2615.4,11.73069995]
[1726968002493,0.0382256,2615.5,2615.4,11.22120695]
[1726968003134,0.0382256,2615.5,2615.4,11.70266044]
[1726968003336,0.0382256,2615.5,2615.4,9.26262748]
[1726968003521,0.0382256,2616.3,2615.5,4.05973995]
[1726968004328,0.0382256,2616.3,2616.2,3.0]
[1726968004520,0.0382256,2616.3,2616.2,3.57828646]
[1726968012292,0.0382256,2616.3,2616.2,21.27542546]
[1726968012500,0.0382256,2616.3,2616.2,19.05797589]
[1726968013361,0.0382256,2616.3,2616.2,14.58475489]
[1726968013558,0.0382256,2616.3,2616.2,9.62235089]
[1726968013862,0.0382256,2616.3,2616.2,7.88735089]
[1726968014572,0.0382256,2616.3,2616.2,5.33952589]
[1726968014898,0.0382256,2616.3,2616.2,6.89211146]
[1726968018494,0.0382256,2616.3,2616.2,5.58211146]
[1726968021899,0.0382256,2616.3,2616.2,6.61356495]
[1726968022566,0.0382256,2617.1,2616.2,6.61356495]
[1726968022765,0.0382256,2617.1,2616.4,3.0]
[1726968022998,0.0382256,2617.1,2616.6,3.0]
[1726968023165,0.0382256,2617.1,2617.0,6.48262149]
[1726968023366,0.0382256,2617.1,2617.0,7.06090795]
[1726968023876,0.0382256,2617.1,2617.0,9.48590795]
[1726968024066,0.0382256,2617.1,2617.0,9.06090795]
[1726968024261,0.0382256,2617.1,2617.0,9.96699875]
[1726968025262,0.0382256,2617.1,2617.0,7.96699875]
[1726968026285,0.0382256,2617.1,2617.0,19.97126475]
[1726968026521,0.0382256,2617.1,2617.0,19.80137475]
[1726968027572,0.0382256,2617.1,2617.0,20.28282824]
[1726968028567,0.0382256,2617.1,2617.0,19.80137475]
[1726968028896,0.0382256,2617.1,2617.0,12.49661675]
[1726968029200,0.0382256,2617.1,2617.0,12.97807024]
[1726968032212,0.0382256,2617.1,2617.0,12.49661675]
[1726968032525,2.295,2617.5,2617.1,3.0]
[1726968032526,2.2832256,2617.5,2617.1,3.0]
[1726968032809,2.2832256,2617.5,2617.1,4.21057528]
[1726968034616,0.0382256,2617.8,2617.1,1.21057528]
[1726968034795,0.0382256,2617.8,2617.5,3.48262149]
[1726968035107,0.0382256,2617.8,2617.6,3.57828646]
[1726968035469,2.3332256,2617.8,2617.6,3.57828646]
[1726968036779,0.0382256,2617.8,2617.6,3.57828646]
[1726968036986,0.0382256,2617.8,2617.7,7.94734349]
[1726968037179,0.0382256,2617.8,2617.7,10.02645509]
[1726968038111,0.0382256,2617.8,2617.7,9.5450016]
[1726968041412,0.0382256,2617.8,2617.7,10.02645509]
[1726968043009,0.0382256,2618.6,2617.8,3.0]
[1726968043196,0.0382256,2618.6,2617.9,1.20782052]
[1726968043478,0.0382256,2618.6,2618.1,3.0]
[1726968043697,0.0382256,2618.6,2618.0,43.15126795]
[1726968043698,0.0382256,2618.6,2618.3,3.0]
[1726968043876,0.0382256,2618.6,2618.5,3.0]
[1726968044077,0.0382256,2618.6,2618.5,22.83434149]
[1726968044313,0.0382256,2618.6,2618.5,21.26179095]
[1726968044524,0.0382256,2618.6,2618.5,9.53473249]
[1726968044525,2.3332256,2618.6,2618.5,9.53473249]
[1726968044821,2.3332256,2618.6,2618.5,7.14359549]
[1726968046076,2.3332256,2618.6,2618.5,3.660974]
[1726968046271,2.3332256,2618.6,2618.3,3.0]
[1726968046513,2.3332256,2618.6,2618.3,3.57828646]
[1726968047299,2.3332256,2618.6,2618.4,0.57828646]
[1726968048184,2.3332256,2618.6,2618.3,3.0]
[1726968049337,2.3332256,2618.6,2618.3,3.57828646]
[1726968049503,2.3332256,2618.6,2618.4,1.28437726]
[1726968053345,2.3332256,2618.6,2618.4,0.57828646]
[1726968053842,2.3332256,2618.6,2618.3,3.0]
[1726968054063,2.3332256,2618.6,2618.1,0.57828646]
[1726968055050,2.3332256,2618.6,2618.3,3.0]
[1726968056253,2.3332256,2618.6,2618.1,0.57828646]
[1726968056553,2.52352256,2618.5,2617.7,0.57828646]
[1726968056767,2.2902,2618.5,2617.9,0.57828646]
[1726968058875,2.2902,2618.5,2617.7,3.0]
[1726968058876,2.2902,2618.5,2617.8,0.57828646]
[1726968060481,2.2902,2618.4,2617.5,0.57828646]
[1726968060663,2.72353156,2618.4,2617.7,0.57828646]
[1726968060844,2.3284256,2618.6,2617.8,0.50728683]
[1726968061049,2.3284256,2618.6,2617.9,0.57828646]
[1726968061570,2.3284256,2618.6,2618.2,3.0]
[1726968061775,2.3284256,2618.6,2618.2,3.64826215]
[1726968062673,2.3284256,2618.6,2618.2,1.22654861]
[1726968062886,2.3284256,2618.6,2618.2,0.57828646]
[1726968063073,2.3284256,2618.6,2618.3,3.0]
[1726968063481,2.3284256,2618.6,2618.3,3.57828646]
[1726968063686,2.3284256,2618.6,2618.4,0.57828646]
[1726968067572,0.0382256,2618.6,2618.4,0.57828646]
[1726968067780,1e-08,2618.6,2618.5,15.85674297]
[1726968068003,1e-08,2618.6,2618.5,7.92602343]
[1726968068313,1e-08,2618.6,2618.5,7.4187366]
[1726968070788,1e-08,2618.6,2618.5,0.57828646]
[1726968070981,2.42320001,2618.6,2618.0,0.57828646]
[1726968071191,2.42320001,2618.6,2618.1,0.57828646]
[1726968071784,2.42320001,2618.6,2618.2,3.48262149]
[1726968072083,2.42320001,2618.6,2618.3,3.0]
[1726968072293,2.42320001,2618.6,2618.4,0.69899083]
[1726968074390,2.42320001,2618.6,2618.3,0.57828646]
[1726968074697,2.42320001,2618.6,2617.9,6.98990832]
[1726968074912,2.42320001,2618.6,2617.9,3.48262149]
[1726968075479,2.9732,2618.5,2617.3,5.280109]
[1726968075592,0.29732,2618.4,2617.4,0.5280109]
[1726968075793,2.4232,2618.3,2617.4,0.5280109]
[1726968076432,2.4232,2618.3,2617.4,4.58891885]
[1726968077003,2.4232,2618.3,2617.5,3.0]
[1726968077195,2.750252,2618.3,2617.5,3.0]
[1726968077396,2.4232,2618.3,2617.7,3.48262149]
[1726968077744,2.4232,2618.3,2617.8,3.0]
[1726968078022,2.4232,2618.3,2617.8,3.57828646]
[1726968078397,2.4232,2618.3,2618.1,3.0]
[1726968081341,2.4232,2618.5,2618.1,3.57828646]
[1726968081628,1e-08,2618.6,2618.2,1.79166409]
[1726968081816,1e-08,2618.6,2618.2,1.08557329]
[1726968082737,1e-08,2618.6,2618.5,6.48262149]
[1726968083236,1e-08,2618.6,2618.5,7.06090795]
[1726968083537,1e-08,2618.6,2618.5,6.48262149]
[1726968084098,2.42320001,2618.6,2618.2,0.57828646]
[1726968085603,2.66552001,2618.6,2617.6,4.27576801]
[1726968085808,2.66552001,2618.6,2617.7,0.57828646]
[1726968086916,2.66552001,2618.6,2617.7,3.57828646]
[1726968087820,2.66552001,2618.6,2617.7,4.08557329]
[1726968088026,2.689752,2618.5,2617.7,4.08557329]
[1726968088220,2.689752,2618.5,2617.7,3.57828646]
[1726968090832,2.418,2618.2,2617.0,3.48262149]
[1726968091030,2.418,2618.1,2617.2,0.57828646]
[1726968091227,2.418,2617.9,2617.2,0.57828646]
[1726968091799,0.09549907,2617.8,2616.7,5.280109]
[1726968092032,2.968,2617.9,2616.8,0.57828646]
[1726968092251,2.968,2617.9,2616.8,1.08557329]
[1726968092404,2.968,2617.9,2616.9,0.50728683]
[1726968092598,2.418,2617.7,2616.9,1.14385506]
[1726968092904,2.418,2617.7,2617.0,0.57828646]
[1726968093111,2.418,2617.7,2617.0,3.57828646]
[1726968093338,2.418,2617.7,2617.2,3.48262149]
[1726968093503,2.418,2617.7,2617.3,0.57828646]
[1726968094383,2.6598,2617.7,2617.0,0.57828646]
[1726968094584,2.418,2617.7,2617.0,0.57828646]
[1726968095167,2.418,2617.7,2617.0,3.57828646]
[1726968096787,2.368,2617.7,2617.0,3.57828646]
[1726968098496,2.368,2617.7,2617.2,3.48262149]
[1726968098798,2.368,2617.7,2617.3,0.57828646]
[1726968104911,2.368,2617.7,2617.3,4.49166409]
[1726968105095,2.418,2618.4,2617.6,3.0]
[1726968105408,2.418,2618.4,2617.6,3.57828646]
[1726968110602,2.3703,2618.2,2617.3,0.4060908]
[1726968110915,2.3703,2618.2,2617.3,0.98437726]
[1726968111672,2.3703,2618.2,2617.4,0.57828646]
[1726968113125,0.0954945,2618.1,2617.4,0.57828646]
[1726968113444,2.3703,2618.0,2617.4,0.57828646]
[1726968114642,2.3703,2618.0,2617.8,0.23]
[1726968117060,2.60733,2618.0,2617.8,0.23]
[1726968117853,2.9203,2617.9,2617.8,0.23]
[1726968121567,2.3703,2617.9,2617.8,0.23]
[1726968138866,2.2791,2618.2,2617.8,0.23]
[1726968139092,2.2791,2618.4,2617.8,0.23]
[1726968139278,2.2791,2618.4,2617.8,3.71262149]
[1726968139523,7.43,2618.5,2617.9,3.37126215]
[1726968140734,2.2791,2618.4,2617.9,3.0]
[1726968140895,2.2791,2618.4,2617.8,0.23]
[1726968141716,2.8291,2618.3,2617.8,0.23]
[1726968143303,2.8291,2618.3,2617.8,0.80826525]
[1726968143505,3.85501,2618.3,2617.8,0.80826525]
[1726968144821,2.8291,2618.3,2617.8,0.80826525]
[1726968145024,2.2791,2618.3,2617.9,0.57826525]
[1726968145532,2.2791,2618.3,2617.8,0.23]
[1726968147720,7.43,2618.7,2617.8,0.23]
[1726968147953,2.2791,2618.6,2617.9,0.57826525]
[1726968149519,7.43,2619.0,2617.9,0.57826525]
[1726968149756,2.2989,2618.9,2617.9,0.57826525]
[1726968151137,2.2989,2618.7,2617.9,0.57826525]
[1726968152743,2.2989,2618.9,2618.1,3.0]
[1726968152943,2.2989,2618.9,2618.2,0.64826215]
[1726968154707,2.2989,2618.9,2618.2,1.2265274]
[1726968154906,2.2989,2618.9,2618.3,0.57826525]
[1726968155277,2.2989,2618.9,2618.3,4.06088674]
[1726968155468,2.2989,2618.9,2618.4,3.0]
[1726968155804,2.2989,2618.9,2618.5,0.70608867]
[1726968156306,2.2989,2618.9,2618.3,0.57826525]
[1726968168913,2.2989,2618.9,2618.1,0.57826525]
[1726968171785,2.4772,2618.7,2618.0,3.0]
[1726968172000,2.4772,2618.7,2618.0,3.57826525]
[1726968172214,2.4772,2618.7,2618.0,4.48710268]
[1726968173405,2.4772,2618.7,2618.1,0.57826525]
[1726968174496,3.0272,2618.5,2617.8,0.80826525]
[1726968174675,0.09549239,2618.4,2617.8,0.23]
[1726968174877,2.4772,2618.3,2617.8,0.23]
[1726968175481,0.30272,2618.4,2617.9,0.57826525]
[1726968175698,2.4772,2618.5,2617.9,0.57826525]
[1726968177073,2.4772,2618.5,2617.8,0.23]
[1726968177475,2.4772,2618.8,2617.9,4.06088674]
[1726968177808,2.4772,2618.8,2618.0,3.0]
[1726968178123,2.4772,2618.8,2618.1,0.70608867]
[1726968178898,0.55,2618.7,2618.0,0.57826525]
[1726968180613,2.57268077,2618.8,2618.0,3.57826525]
[1726968180614,2.4772,2618.8,2618.0,3.57826525]
[1726968181881,0.55,2618.7,2618.0,0.57826525]
[1726968196359,9.7934,2619.0,2618.0,0.57826525]
[1726968196645,2.3634,2619.2,2618.2,3.0]
[1726968196877,2.3634,2619.2,2618.3,0.57826525]
[1726968199160,0.03822561,2619.4,2618.8,3.0]
[1726968199374,0.03822561,2619.4,2619.1,3.0]
[1726968199515,0.03822561,2619.4,2619.2,0.64826215]
[1726968199857,0.03822561,2619.4,2619.2,0.35037483]
[1726968200164,0.03822561,2619.4,2619.3,0.3503786]
[1726968203223,0.03822561,2619.4,2619.2,0.35037483]
[1726968203646,0.03822561,2619.4,2619.3,0.34977839]
[1726968204431,0.03822561,2619.4,2619.0,3.0]
[1726968204678,0.03822561,2619.4,2619.1,0.70608867]
[1726968208873,0.03822561,2619.4,2619.0,0.57826525]
[1726968209864,0.03822561,2619.4,2619.1,4.06088674]
[1726968210068,0.03822561,2619.4,2619.2,3.0]
[1726968219045,0.03822561,2619.4,2619.0,0.57826525]
[1726968226321,2.4865,2619.3,2619.0,0.57826525]
[1726968227113,0.03822561,2619.4,2619.0,3.57826525]
[1726968227424,0.03822561,2619.4,2619.1,0.70608867]
[1726968227613,0.03822561,2619.4,2619.2,0.57826525]
[1726968227979,0.03822561,2619.4,2619.2,4.06088674]
[1726968228403,0.03822561,2619.4,2619.3,3.0]
[1726968231713,0.03822561,2619.4,2619.3,3.57826525]
[1726968231934,0.03822561,2619.4,2619.3,4.35496279]
[1726968238497,0.03822561,2619.4,2619.3,10.17578579]
[1726968239817,0.03822561,2619.4,2619.3,9.74564179]
[1726968240731,0.03822561,2619.4,2619.3,4.35496279]
[1726968240937,0.03822561,2619.4,2619.3,9.74564179]
[1726968241632,0.03822561,2619.4,2619.3,7.75969579]
[1726968243534,0.03822561,2619.4,2619.3,4.35496279]
[1726968247995,0.03822561,2619.4,2619.3,0.57826525]
[1726968248201,2.41802561,2619.4,2619.0,0.57826525]
[1726968248433,2.41802561,2619.4,2619.3,0.57826525]
[1726968249146,2.41802561,2619.4,2618.8,0.57826525]
[1726968249303,2.41802561,2619.4,2619.0,1.60320525]
[1726968249503,2.41802561,2619.4,2619.1,0.57826525]
[1726968255743,2.41802561,2619.4,2619.0,3.2682674]
[1726968255943,2.41802561,2619.4,2619.0,3.84653265]
[1726968257508,2.41802561,2619.4,2619.1,0.57826525]
[1726968257933,0.09544063,2619.3,2618.6,0.57826525]
[1726968258149,2.4718,2619.2,2617.9,3.47437699]
[1726968258341,2.4718,2619.1,2618.0,0.3925567]
[1726968258523,2.4718,2618.9,2618.0,0.85600159]
[1726968258841,2.4718,2618.9,2618.0,1.39351684]
[1726968259349,2.4718,2618.9,2618.1,0.53751525]
[1726968260651,2.2418,2618.9,2618.1,0.53751525]
[1726968261655,2.2418,2618.9,2618.0,3.46344489]
[1726968261957,2.490698,2618.9,2618.0,3.46344489]
[1726968262702,2.490698,2618.9,2618.0,4.50216363]
[1726968263207,2.490698,2618.9,2618.1,0.53751525]
[1726968263409,2.2418,2618.9,2618.1,0.53751525]
[1726968268021,2.2418,2618.9,2618.3,3.0]
[1726968270058,2.2418,2618.9,2618.1,0.53751525]
[1726968270257,2.2418,2618.9,2618.0,3.46344489]
[1726968271859,2.2418,2618.9,2618.1,1.03871874]
[1726968272070,2.2418,2618.9,2618.2,0.45021636]
[1726968276917,2.2418,2618.9,2617.7,1.03871874]
[1726968277170,0.55,2618.6,2617.7,0.53751525]
[1726968277462,0.55,2618.6,2617.3,3.97558048]
[1726968277463,2.367,2618.4,2617.3,3.97558048]
[1726968277757,2.367,2618.4,2617.4,1.03871874]
[1726968277966,2.367,2618.4,2617.5,0.45130957]
[1726968278123,2.367,2618.4,2617.5,1.49002831]
[1726968279765,2.367,2618.3,2617.5,0.45130957]
[1726968279921,2.46249667,2618.2,2617.5,0.45130957]
[1726968280357,2.367,2618.2,2617.6,0.34513096]
[1726968280562,2.367,2618.2,2617.5,0.45130957]
[1726968280926,2.367,2618.2,2617.6,0.53751525]
[1726968282444,2.367,2618.2,2617.5,0.45130957]
[1726968283872,2.367,2618.2,2617.6,0.53751525]
[1726968284199,2.367,2618.2,2617.2,0.50120349]
[1726968284484,2.367,2618.2,2617.3,0.53751525]
[1726968284905,2.367,2618.2,2617.3,1.03871874]
[1726968285061,2.367,2618.2,2617.3,4.03871874]
[1726968285294,2.367,2618.2,2617.4,0.75130957]
[1726968285570,2.46250174,2618.2,2617.5,0.53751525]
[1726968285776,2.46250174,2618.2,2617.4,0.75130957]
[1726968286391,2.917,2618.1,2617.2,0.53751525]
[1726968286591,2.367,2617.9,2616.9,0.50120349]
[1726968286780,2.367,2617.7,2616.9,1.03871874]
[1726968286983,2.367,2617.6,2616.9,1.03871874]
[1726968287170,2.367,2617.4,2616.4,0.38801118]
[1726968287393,2.367,2617.3,2616.4,0.92552643]
[1726968287589,2.367,2617.1,2616.4,0.53751525]
[1726968287794,2.367,2616.9,2616.4,0.53751525]
[1726968289064,2.367,2616.9,2616.3,0.03822559]
[1726968289773,2.2612,2616.7,2616.3,0.03822559]
[1726968289975,0.24625357,2616.9,2616.3,0.03822559]
[1726968289976,2.2612,2616.5,2616.3,0.03822559]
[1726968296730,2.35675973,2616.4,2616.3,0.03822559]
[1726968296934,2.2612,2616.4,2616.3,0.03822559]
[1726968297505,2.48732,2616.4,2616.3,0.03822559]
[1726968298791,3.03732,2616.4,2616.3,0.03822559]
[1726968299015,3.13289185,2616.4,2616.3,0.03822559]
[1726968299405,2.2612,2616.3,2615.6,3.0]
[1726968299639,2.2612,2616.1,2615.5,0.0382256]
[1726968299943,2.49687722,2616.1,2615.5,0.0382256]
[1726968302449,2.2612,2616.1,2615.5,0.0382256]
[1726968302835,2.2612,2616.1,2615.5,3.50776243]
[1726968303368,2.2612,2616.1,2615.5,3.0382256]
[1726968303821,2.2612,2616.1,2615.5,0.0382256]
[1726968304260,0.09557218,2616.0,2615.5,0.0382256]
[1726968304454,2.2612,2615.9,2615.5,0.0382256]
[1726968305348,2.35677231,2615.8,2615.5,0.0382256]
[1726968306921,2.2612,2615.8,2615.5,0.0382256]
[1726968310795,7.43,2616.3,2615.5,3.0382256]
[1726968310796,2.3547,2616.2,2615.5,3.0382256]
[1726968312751,2.4502735,2616.2,2615.5,0.0382256]
[1726968312950,2.3547,2616.0,2615.5,0.0382256]
[1726968319462,7.43,2616.3,2615.6,0.46888275]
[1726968319463,9.7847,2616.3,2615.6,0.46888275]